fUSD/lending_fUSD_20250507
["ID","MTS","AMOUNT","RATE_DAILY","PERIOD"]
[360239286,1746648641665,-417.82,0.000202,2]
[360239287,1746648641676,-456.71,0.000202,2]
[360239288,1746648641685,-678.67,0.000202,2]
[360239289,1746648641695,-150.0,0.000202,2]
[360239290,1746648641705,-274.04,0.000202,2]
[360239291,1746648641715,-150.0,0.000202,2]
[360239292,1746648641724,-300.0,0.000202,2]
[360239293,1746648641734,-456.71,0.000202,2]
[360239294,1746648641743,-802.64,0.000202,2]
[360239295,1746648641753,-1000.0,0.000203,2]
[360239296,1746648641763,-200.0,0.0002031,2]
[360239297,1746648641773,-1000.0,0.000204,2]
[360239298,1746648641783,-1038.0,0.000204,2]
[360239299,1746648641793,-200.0,0.00020401,2]
[360239300,1746648641802,-200.0,0.00020401,2]
[360239301,1746648641812,-200.0,0.00020402,2]
[360239302,1746648641822,-200.0,0.0002041,2]
[360239303,1746648641832,-1000.0,0.000205,2]
[360239304,1746648641841,-200.0,0.0002051,2]
[360239305,1746648641855,-300.0,0.00020532,2]
[360239306,1746648641866,-2000.0,0.000206,5]
[360239307,1746648641881,-1000.0,0.000206,2]
[360239308,1746648641895,-1038.0,0.000206,2]
[360239309,1746648641907,-200.0,0.00020605,2]
[360239310,1746648641920,-200.0,0.00020605,2]
[360239311,1746648641931,-200.0,0.00020606,2]
[360239312,1746648641941,-200.0,0.0002061,2]
[360239313,1746648641954,-1000.0,0.000207,2]
[360239314,1746648641965,-200.0,0.0002071,2]
[360239315,1746648641978,-1074.0,0.0002075,2]
[360239316,1746648641990,-1386.08,0.000208,2]
[360239317,1746648642002,-900.0,0.000208,3]
[360239318,1746648642015,-1000.0,0.000208,2]
[360239319,1746648642028,-200.0,0.0002081,2]
[360239320,1746648642040,-200.0,0.00020811,2]
[360239321,1746648642052,-200.0,0.00020811,2]
[360239322,1746648642065,-200.0,0.00020812,2]
[360239323,1746648642077,-305.92,0.00020817,2]
[360239324,1746648642090,-301.01,0.00020817,2]
[360239325,1746648642102,-302.66,0.00020818,2]
[360239326,1746648642113,-303.66,0.00020818,2]
[360239327,1746648642126,-303.35,0.00020818,2]
[360239328,1746648642136,-302.81,0.00020818,2]
[360239329,1746648642146,-301.53,0.00020818,2]
[360239330,1746648642157,-301.52,0.00020818,2]
[360239331,1746648642170,-303.28,0.00020818,2]
[360239332,1746648642183,-300.39,0.00020818,2]
[360239333,1746648642195,-304.53,0.00020818,2]
[360239334,1746648642208,-305.51,0.00020818,2]
[360239335,1746648642220,-305.72,0.00020818,2]
[360239336,1746648642231,-303.84,0.00020818,2]
[360239337,1746648642244,-303.56,0.00020818,2]
[360239338,1746648642256,-305.47,0.00020818,2]
[360239339,1746648642268,-302.76,0.00020818,2]
[360239340,1746648642280,-303.4,0.00020818,2]
[360239341,1746648642293,-302.77,0.00020819,2]
[360239342,1746648642305,-304.06,0.00020826,2]
[360239343,1746648642317,-302.73,0.00020826,2]
[360239344,1746648642328,-305.43,0.00020827,2]
[360239345,1746648642341,-304.9,0.00020828,2]
[360239346,1746648642354,-305.72,0.00020834,2]
[360239347,1746648642365,-300.31,0.00020834,2]
[360239348,1746648642377,-305.55,0.00020834,2]
[360239349,1746648642389,-301.37,0.00020836,2]
[360239350,1746648642401,-301.74,0.00020836,2]
[360239351,1746648642412,-303.3,0.00020836,2]
[360239352,1746648642424,-304.75,0.00020836,2]
[360239353,1746648642437,-301.79,0.00020836,2]
[360239354,1746648642448,-304.92,0.00020836,2]
[360239355,1746648642461,-303.77,0.00020836,2]
[360239356,1746648642472,-305.8,0.00020836,2]
[360239357,1746648642485,-304.1,0.00020836,2]
[360239358,1746648642499,-305.11,0.00020836,2]
[360239359,1746648642513,-301.21,0.00020836,2]
[360239360,1746648642526,-305.78,0.00020836,2]
[360239361,1746648642538,-304.79,0.00020836,2]
[360239362,1746648642549,-304.68,0.00020836,2]
[360239363,1746648642561,-301.24,0.00020836,2]
[360239364,1746648642572,-302.67,0.00020836,2]
[360239365,1746648642583,-300.51,0.00020839,2]
[360239366,1746648642594,-305.54,0.00020839,2]
[360239367,1746648642604,-300.74,0.00020839,2]
[360239368,1746648642618,-305.04,0.00020839,2]
[360239369,1746648642628,-301.37,0.00020839,2]
[360239370,1746648642640,-302.93,0.0002084,2]
[360239371,1746648642653,-301.36,0.0002084,2]
[360239372,1746648642668,-301.12,0.0002084,2]
[360239373,1746648642682,-303.57,0.00020856,2]
[360239374,1746648642692,-300.59,0.00020856,2]
[360239375,1746648642703,-301.95,0.00020856,2]
[360239376,1746648642713,-300.28,0.00020856,2]
[360239377,1746648642724,-301.79,0.00020873,2]
[360239378,1746648642734,-305.59,0.00020897,2]
[360239379,1746648642746,-305.41,0.00020898,2]
[360239380,1746648642758,-305.14,0.00020898,2]
[360239382,1746648642770,-300.11,0.00020898,2]
[360239385,1746648642782,-305.5,0.00020898,2]
[360239387,1746648642795,-301.9,0.00020898,2]
[360239389,1746648642807,-304.21,0.00020898,2]
[360239391,1746648642819,-301.45,0.00020898,2]
[360239392,1746648642829,-302.35,0.00020899,2]
[360239393,1746648642840,-304.36,0.00020899,2]
[360239394,1746648642851,-304.34,0.00020899,2]
[360239395,1746648642861,-300.71,0.000209,2]
[360239396,1746648642872,-304.84,0.000209,2]
[360239397,1746648642883,-302.07,0.000209,2]
[360239398,1746648642895,-1000.0,0.000209,2]
[360239400,1746648642905,-200.0,0.0002091,2]
[360239402,1746648642916,-302.55,0.00020997,2]
[360239404,1746648642926,-300.1,0.00020998,2]
[360239406,1746648642937,-305.45,0.00020998,2]
[360239409,1746648642948,-301.24,0.00020999,2]
[360239411,1746648642959,-200.29688408,0.00020999,2]
[360239413,1746648642969,-500.0,0.00020999,2]
[360239416,1746648642980,-209.67848987,0.00020999,2]
[360239418,1746648642991,-182.89412495,0.00020999,2]
[360239420,1746648643004,-500.0,0.00020999,2]
[360239423,1746648643015,-362.80539,0.00020999,2]
[360239425,1746648643026,-500.0,0.00020999,2]
[360239427,1746648643037,-500.0,0.00020999,2]
[360239429,1746648643048,-1154.97685774,0.00021,2]
[360239431,1746648643059,-190.62320014,0.00021,2]
[360239433,1746648643070,-216.4,0.00021,2]
[360239436,1746648643082,-1000.0,0.00021,2]
[360239439,1746648643093,-350.0,0.00021,2]
[360239441,1746648643104,-600.0,0.00021242,2]
[360239443,1746648643116,-1002.99571527,0.000213,2]
[360239445,1746648643127,-1000.0,0.00021318,2]
[360239448,1746648643138,-215.0738,0.00021357,2]
[360239450,1746648643151,-150.0,0.00021369,2]
[360239452,1746648643161,-3838.28,0.000215,2]
[360239454,1746648643173,-420.0,0.0002167,2]
[360239456,1746648643184,-420.0,0.0002167,2]
[360239458,1746648643194,-729.37,0.00021673,2]
[360239460,1746648643205,-250.0,0.0002176,2]
[360239463,1746648643216,-1680.0,0.00021774,2]
[360239465,1746648643226,-1200.0,0.0002178,2]
[360239467,1746648643237,-1074.0,0.00021788,2]
[360239469,1746648643249,-200.0,0.00021798,2]
[360239471,1746648643260,-250.0,0.00021798,2]
[360239473,1746648643270,-200.0,0.00021798,2]
[360239476,1746648643282,-250.0,0.00021798,2]
[360239478,1746648643294,-200.0,0.00021798,2]
[360239480,1746648643305,-1050.0,0.000218,4]
[360239482,1746648643316,-300.0,0.00021902,2]
[360239485,1746648643328,-200.0,0.00021918,2]
[360239487,1746648643340,-200.0,0.00021918,2]
[360239489,1746648643352,-168.0,0.00021918,2]
[360239491,1746648643364,-168.0,0.00021918,2]
[360239493,1746648643375,-1000.0,0.00021918,2]
[360239496,1746648643386,-259.0,0.00021918,2]
[360239498,1746648643397,-1961.44864651,0.00021918,2]
[360239510,1746648643484,-557.084731,0.000202,2]
[360239516,1746648643503,-1161.915269,0.000202,2]
[360239519,1746648643514,-4752.793327,0.00021918,2]
[360239568,1746648658520,-450.0,0.00019997,2]
[360239569,1746648658530,-3285.75802649,0.00021918,2]
[360239570,1746648658541,-1009.0,0.00021918,2]
[360239571,1746648658551,-514.03835842,0.00021918,2]
[360239572,1746648658560,-130.10361509,0.00021959,3]
[360239573,1746648658573,-21.89638491,0.00021959,3]
[360239574,1746648658582,-4933.0849766,0.00021996,2]
[360239575,1746648658592,-1039.8191851,0.00021996,2]
[360239576,1746648658603,-1713.2915467,0.00021996,2]
[360239577,1746648658613,-1075.51105369,0.00021996,2]
[360239580,1746648798901,226.94594952,0.0003,30]
[360239583,1746648970370,350.0,0.0003013,120]
[360239586,1746649295130,706.98,0.00018969,2]
[360239587,1746649491881,500.0,0.000195,2]
[360239589,1746649586730,500.0,2e-05,2]
[360239610,1746649832156,-156.04,0.00019525,2]
[360239611,1746649832167,-150.0,0.00019525,7]
[360239612,1746649832176,-182.76878948,0.00019871,2]
[360239613,1746649832185,-250.0,0.00019872,2]
[360239614,1746649832195,-200.0,0.00019872,2]
[360239615,1746649832205,-182.76878947,0.00019873,2]
[360239616,1746649832215,-250.0,0.00019878,2]
[360239617,1746649832225,-200.0,0.00019887,2]
[360239618,1746649832234,-1200.0,0.00019899,2]
[360239619,1746649832243,-300.0,0.00019899,2]
[360239620,1746649832253,-1514.48545334,0.000199,2]
[360239621,1746649832264,-513.74121267,0.000199,2]
[360239622,1746649832275,-10191.3053151,0.000199,2]
[360239623,1746649832291,-289.4306743,0.000199,2]
[360239624,1746649832299,-277.59718131,0.000199,2]
[360239625,1746649832310,-1008.4908432,0.000199,2]
[360239626,1746649832320,-158.79297816,0.000199,2]
[360239627,1746649832329,-200.0,0.00019905,2]
[360239628,1746649832339,-52.13458343,0.0001996,2]
[360239629,1746649832351,-155.26541657,0.0001996,2]
[360239630,1746649832360,-740.88059788,0.00019962,2]
[360239631,1746649832373,-101.87774214,0.00019962,2]
[360239632,1746649832383,-226.37316924,0.00019972,2]
[360239633,1746649832394,-398.05286501,0.00019972,2]
[360239634,1746649832405,-5043.40180296,0.00019972,2]
[360239635,1746649832440,-5933.588277,0.00019972,2]
[360239638,1746649832452,-1047.85311258,0.00019972,2]
[360239640,1746649832464,-365.60000001,0.00019972,2]
[360239711,1746649838496,-37137.17417662,0.00019972,2]
[360239718,1746649840338,-3409.97114374,0.00019972,2]
[360239719,1746649840349,-500.0,0.00019973,2]
[360239720,1746649840359,-500.0,0.00019973,2]
[360239721,1746649840369,-500.0,0.00019973,2]
[360239722,1746649840379,-150.05831308,0.0001999,2]
[360239723,1746649840389,-450.0,0.00019999,2]
[360239724,1746649840399,-1058.776,0.00019999,2]
[360239725,1746649840409,-450.0,0.00019999,2]
[360239726,1746649840418,-450.0,0.00019999,2]
[360239727,1746649840428,-500.0,0.00019999,2]
[360239728,1746649840438,-500.0,0.00019999,2]
[360239729,1746649840450,-450.0,0.00019999,2]
[360239730,1746649840461,-450.0,0.00019999,2]
[360239731,1746649840471,-510.51,0.00019999,2]
[360239732,1746649840481,-450.0,0.00019999,2]
[360239733,1746649840491,-450.0,0.00019999,2]
[360239734,1746649840500,-450.0,0.00019999,2]
[360239735,1746649840511,-450.0,0.00019999,2]
[360239736,1746649840520,-500.0,0.00019999,2]
[360239737,1746649840531,-161.14,0.00019999,2]
[360239738,1746649840545,-450.0,0.00019999,2]
[360239739,1746649840556,-500.0,0.00019999,2]
[360239740,1746649840567,-450.0,0.00019999,2]
[360239741,1746649840589,-450.0,0.00019999,2]
[360239742,1746649840602,-450.0,0.00019999,2]
[360239743,1746649840613,-450.0,0.00019999,2]
[360239744,1746649840624,-450.0,0.00019999,2]
[360239745,1746649840635,-450.0,0.00019999,2]
[360239746,1746649840646,-204.91228373,0.00019999,2]
[360239747,1746649840656,-450.0,0.00019999,2]
[360239748,1746649840666,-1520.8,0.00019999,2]
[360239749,1746649840676,-450.0,0.00019999,2]
[360239750,1746649840686,-450.0,0.00019999,2]
[360239751,1746649840698,-450.0,0.00019999,2]
[360239752,1746649840710,-450.0,0.00019999,2]
[360239753,1746649840722,-481.19,0.00019999,2]
[360239754,1746649840734,-450.0,0.00019999,2]
[360239755,1746649840744,-500.0,0.00019999,2]
[360239756,1746649840754,-500.0,0.00019999,2]
[360239757,1746649840765,-500.0,0.00019999,2]
[360239758,1746649840776,-153.963773,0.00019999,2]
[360239759,1746649840786,-500.0,0.00019999,2]
[360239760,1746649840797,-500.0,0.00019999,2]
[360239761,1746649840808,-500.0,0.00019999,2]
[360239762,1746649840820,-500.0,0.00019999,2]
[360239763,1746649840830,-500.0,0.00019999,2]
[360239764,1746649840841,-500.0,0.00019999,2]
[360239765,1746649840852,-500.0,0.00019999,2]
[360239766,1746649840863,-500.0,0.00019999,2]
[360239767,1746649840875,-500.0,0.00019999,2]
[360239768,1746649840885,-500.0,0.00019999,2]
[360239769,1746649840895,-500.0,0.00019999,2]
[360239770,1746649840905,-500.0,0.00019999,2]
[360239771,1746649840915,-605.15053718,0.00019999,2]
[360239772,1746649840925,-500.0,0.00019999,2]
[360239773,1746649840935,-500.0,0.00019999,2]
[360239774,1746649840945,-500.0,0.00019999,2]
[360239775,1746649840956,-40509.83490344,0.0002,2]
[360239776,1746649840966,-172458.31817247,0.0002,2]
[360239777,1746649840980,-44883.78483956,0.0002,2]
[360239778,1746649840994,-213092.66132053,0.0002,2]
[360239785,1746649843399,-450.0,0.00019999,2]
[360239786,1746649843411,-18845.2,0.0002,2]
[360239787,1746649843424,-3602.0,0.0002,2]
[360239791,1746649956349,177.045514,0.00018796,2]
[360239792,1746650082423,30008.0,0.0003,30]
[360239793,1746650192263,10000.0,0.0003,30]
[360239794,1746650313275,250.0,0.00019326,2]
[360239795,1746650320196,1000.0,0.00019327,2]
[360239796,1746650460279,250.0,0.00017,2]
[360239797,1746650461350,300.0,0.00019,2]
[360239798,1746650514600,671.63,0.0001708,2]
[360239799,1746650515041,671.63,0.00019344,2]
[360239800,1746650589210,200.0,0.00018997,2]
[360239801,1746650597479,166.78,0.00015606,2]
[360239802,1746650602585,-524.54793722,0.00019508,2]
[360239803,1746650643129,23900.0,0.00018965,2]
[360239804,1746650947490,150.0,0.0003,30]
[360239805,1746650950439,612.50149411,0.00019498,2]
[360239806,1746650987696,1333.0,0.00029041,120]
[360239807,1746651003131,652.299999,0.00030137,120]
[360239808,1746651007223,1973.93,0.0003013,120]
[360239809,1746651026955,150.0,0.00018986,7]
[360239810,1746651031352,-163.91206278,0.00019508,2]
[360239811,1746651031363,-277.74,0.00019565,2]
[360239812,1746651031373,-176.18185948,0.00019575,2]
[360239813,1746651031384,-460.0,0.00019586,2]
[360239814,1746651031393,-298.31707358,0.00019606,2]
[360239815,1746651031404,-323.54658796,0.00019687,2]
[360239816,1746651031413,-200.0,0.00019687,2]
[360239817,1746651031424,-460.0,0.00019788,2]
[360239818,1746651031689,-612.50149411,0.00019791,2]
[360239820,1746651031699,-207.4,0.00019861,2]
[360239822,1746651031709,-500.0,0.00019873,2]
[360239824,1746651031719,-500.0,0.00019873,2]
[360239826,1746651031729,-500.0,0.00019873,2]
[360239828,1746651031738,-1200.0,0.00019895,2]
[360239830,1746651031748,-300.0,0.00019898,2]
[360239832,1746651031758,-300.0,0.00019898,2]
[360239834,1746651031767,-2851.14241054,0.00019899,2]
[360239836,1746651031777,-2851.14241054,0.00019899,2]
[360239838,1746651031788,-2851.14241054,0.00019899,2]
[360239840,1746651031798,-2851.14241054,0.00019899,2]
[360239842,1746651031808,-175.16676163,0.00019899,2]
[360239844,1746651031820,-2675.97564891,0.00019899,2]
[360239846,1746651031829,-2851.14241054,0.000199,2]
[360239848,1746651031839,-2089.79365829,0.000199,2]
[360239850,1746651031851,-761.34875225,0.000199,2]
[360239852,1746651031861,-2462.05276214,0.000199,2]
[360239854,1746651031872,-389.0896484,0.000199,2]
[360239856,1746651031883,-372.37857072,0.000199,2]
[360239858,1746651031894,-574.42573208,0.000199,2]
[360239860,1746651031908,-1904.33810774,0.000199,2]
[360239862,1746651031918,-405.1003,0.000199,2]
[360239864,1746651031928,-45.36159226,0.000199,2]
[360239866,1746651031939,-404.94570774,0.000199,2]
[360239868,1746651031948,-177.18560466,0.000199,2]
[360239870,1746651031959,-4.59335472,0.000199,2]
[360239872,1746651031970,-482.51754377,0.000199,2]
[360239875,1746651031987,-127.06430151,0.000199,2]
[360239877,1746651031997,-1825.66165136,0.000199,2]
[360239879,1746651032008,-2967.66811576,0.000199,2]
[360239881,1746651032019,-2783.80509327,0.000199,2]
[360239883,1746651032031,-598.20233049,0.000199,2]
[360239884,1746651032042,-1798.17442008,0.000199,2]
[360239886,1746651032054,-4474.8697187,0.000199,2]
[360239888,1746651032065,-388.00883751,0.000199,2]
[360239890,1746651032077,-2553.33000917,0.000199,2]
[360239891,1746651032089,-3777.71549535,0.000199,2]
[360239892,1746651032100,-2002.65164984,0.000199,2]
[360239901,1746651037533,-18558.52463184,0.000199,2]
[360239902,1746651037545,-158.79297812,0.000199,2]
[360239903,1746651037556,-2599.01793904,0.000199,2]
[360239904,1746651037567,-2851.14241054,0.000199,2]
[360239905,1746651037579,-8339.30843694,0.000199,2]
[360239906,1746651037590,-170.25274647,0.000199,2]
[360239907,1746651037602,-500.0,0.00019973,2]
[360239908,1746651037614,-500.0,0.00019973,2]
[360239909,1746651037626,-320.57584533,0.00019973,2]
[360239910,1746651037637,-500.0,0.00019973,2]
[360239911,1746651037649,-501.63502191,0.00019973,2]
[360239912,1746651037659,-500.0,0.00019973,2]
[360239913,1746651037670,-500.0,0.00019973,2]
[360239914,1746651037682,-501.37713214,0.00019973,2]
[360239915,1746651037692,-500.0,0.00019973,2]
[360239916,1746651037702,-155.87508114,0.0001999,2]
[360239917,1746651037713,-155.87508114,0.0001999,2]
[360239918,1746651037724,-155.87508114,0.0001999,2]
[360239919,1746651037736,-460.0,0.0001999,2]
[360239921,1746651037746,-1170.81600826,0.00019996,2]
[360239922,1746651037758,-500.0,0.00019998,2]
[360239923,1746651037769,-500.0,0.00019998,2]
[360239924,1746651037779,-450.0,0.00019998,2]
[360239925,1746651037789,-450.0,0.00019998,2]
[360239926,1746651037799,-450.0,0.00019998,2]
[360239927,1746651037810,-450.0,0.00019998,2]
[360239928,1746651037821,-450.0,0.00019998,2]
[360239929,1746651037832,-487.19588173,0.00019998,2]
[360239930,1746651037842,-181.59,0.00019998,2]
[360239931,1746651037852,-450.0,0.00019998,2]
[360239932,1746651037861,-303.67004192,0.00019998,2]
[360239933,1746651037875,-862.55701408,0.00019998,2]
[360239934,1746651037885,-501.51669092,0.00019998,2]
[360239935,1746651037895,-450.0,0.00019998,2]
[360239936,1746651037906,-450.0,0.00019998,2]
[360239937,1746651037919,-450.0,0.00019998,2]
[360239938,1746651037929,-450.0,0.00019998,2]
[360239940,1746651037939,-250.0,0.00019998,2]
[360239942,1746651037955,-450.0,0.00019998,2]
[360239943,1746651037965,-499.51788771,0.00019998,2]
[360239945,1746651037975,-450.0,0.00019998,2]
[360239947,1746651037986,-503.9538105,0.00019998,2]
[360239949,1746651037996,-480.72078504,0.00019998,2]
[360239951,1746651038006,-484.48851926,0.00019998,2]
[360239953,1746651038016,-478.33724868,0.00019998,2]
[360239954,1746651038027,-450.0,0.00019998,2]
[360239955,1746651038037,-450.0,0.00019998,2]
[360239956,1746651038048,-546.50705588,0.00019998,2]
[360239957,1746651038058,-481.94249933,0.00019998,2]
[360239958,1746651038068,-450.0,0.00019998,2]
[360239959,1746651038079,-505.25687492,0.00019998,2]
[360239960,1746651038090,-450.0,0.00019998,2]
[360239961,1746651038100,-450.0,0.00019998,2]
[360239962,1746651038110,-500.0,0.00019998,2]
[360239963,1746651038121,-451.97454039,0.00019998,2]
[360239964,1746651038131,-450.0,0.00019998,2]
[360239965,1746651038142,-450.0,0.00019998,2]
[360239966,1746651038151,-500.0,0.00019998,2]
[360239967,1746651038162,-450.0,0.00019998,2]
[360239968,1746651038172,-500.0,0.00019998,2]
[360239969,1746651038182,-450.0,0.00019998,2]
[360239970,1746651038192,-450.0,0.00019998,2]
[360239971,1746651038202,-450.0,0.00019998,2]
[360239972,1746651038212,-471.34961458,0.00019998,2]
[360239973,1746651038223,-450.0,0.00019998,2]
[360239974,1746651038234,-500.0,0.00019998,2]
[360239975,1746651038244,-450.0,0.00019998,2]
[360239976,1746651038254,-450.0,0.00019998,2]
[360239977,1746651038265,-450.0,0.00019998,2]
[360239978,1746651038275,-450.0,0.00019998,2]
[360239979,1746651038286,-528.55,0.00019998,2]
[360239980,1746651038296,-248.93723622,0.00019998,2]
[360239981,1746651038307,-384.55562359,0.00019998,2]
[360239982,1746651038317,-450.0,0.00019998,2]
[360239983,1746651038327,-450.0,0.00019998,2]
[360239984,1746651038337,-168.12834176,0.00019998,2]
[360239985,1746651038348,-500.0,0.00019998,2]
[360239986,1746651038358,-450.0,0.00019998,2]
[360239987,1746651038369,-450.0,0.00019998,2]
[360239988,1746651038383,-500.0,0.00019998,2]
[360239989,1746651038394,-186.28222241,0.00019998,2]
[360239990,1746651038405,-450.0,0.00019998,2]
[360239991,1746651038415,-450.0,0.00019998,2]
[360239992,1746651038425,-450.0,0.00019998,2]
[360239993,1746651038435,-450.0,0.00019998,2]
[360239994,1746651038445,-500.0,0.00019998,2]
[360239995,1746651038456,-311.11978855,0.00019998,2]
[360239996,1746651038466,-450.0,0.00019998,2]
[360239997,1746651038476,-450.0,0.00019998,2]
[360239998,1746651038487,-450.0,0.00019998,2]
[360239999,1746651038497,-450.0,0.00019998,2]
[360240000,1746651038507,-450.0,0.00019998,2]
[360240001,1746651038517,-566.16,0.00019998,2]
[360240002,1746651038527,-450.0,0.00019998,2]
[360240003,1746651038538,-450.0,0.00019998,2]
[360240004,1746651038549,-450.0,0.00019998,2]
[360240005,1746651038559,-500.0,0.00019998,2]
[360240006,1746651038569,-450.0,0.00019998,2]
[360240007,1746651038580,-478.28,0.00019998,2]
[360240008,1746651038591,-450.0,0.00019998,2]
[360240009,1746651038603,-450.0,0.00019998,2]
[360240010,1746651038614,-450.0,0.00019998,2]
[360240011,1746651038624,-450.0,0.00019998,2]
[360240012,1746651038634,-450.0,0.00019998,2]
[360240013,1746651038645,-450.0,0.00019998,2]
[360240014,1746651038655,-450.0,0.00019998,2]
[360240015,1746651038665,-450.0,0.00019998,2]
[360240016,1746651038676,-450.0,0.00019998,2]
[360240017,1746651038686,-450.0,0.00019998,2]
[360240018,1746651038696,-450.0,0.00019998,2]
[360240019,1746651038706,-450.0,0.00019998,2]
[360240020,1746651038716,-450.0,0.00019998,2]
[360240021,1746651038727,-450.0,0.00019998,2]
[360240022,1746651038737,-450.0,0.00019998,2]
[360240023,1746651038747,-577.63,0.00019998,2]
[360240024,1746651038756,-401.28011039,0.00019998,2]
[360240025,1746651039500,-48.71988961,0.00019998,2]
[360240026,1746651039523,-450.0,0.00019998,2]
[360240027,1746651039535,-450.0,0.00019998,2]
[360240028,1746651039546,-450.0,0.00019998,2]
[360240029,1746651039556,-450.0,0.00019998,2]
[360240030,1746651039566,-450.0,0.00019998,2]
[360240031,1746651039577,-450.0,0.00019998,2]
[360240032,1746651039590,-450.0,0.00019998,2]
[360240033,1746651039599,-450.0,0.00019998,2]
[360240034,1746651039610,-450.0,0.00019998,2]
[360240035,1746651039622,-450.0,0.00019998,2]
[360240036,1746651039634,-450.0,0.00019998,2]
[360240037,1746651039645,-450.0,0.00019998,2]
[360240038,1746651039655,-450.0,0.00019998,2]
[360240039,1746651039665,-450.0,0.00019998,2]
[360240040,1746651039676,-450.0,0.00019998,2]
[360240041,1746651039689,-450.0,0.00019998,2]
[360240042,1746651039699,-467.45,0.00019998,2]
[360240043,1746651039710,-168.7980622,0.00019998,2]
[360240044,1746651039722,-450.0,0.00019998,2]
[360240045,1746651039735,-450.0,0.00019998,2]
[360240046,1746651039745,-450.0,0.00019998,2]
[360240047,1746651039755,-450.0,0.00019998,2]
[360240048,1746651039765,-1347.31378408,0.00019999,2]
[360240049,1746651039776,-500.0,0.00019999,2]
[360240050,1746651039787,-450.0,0.00019999,2]
[360240051,1746651039798,-450.0,0.00019999,2]
[360240052,1746651039810,-450.0,0.00019999,2]
[360240053,1746651039822,-480.2264725,0.00019999,2]
[360240054,1746651039833,-450.0,0.00019999,2]
[360240055,1746651039846,-470.0,0.00019999,2]
[360240056,1746651039857,-550.0,0.00019999,2]
[360240057,1746651039867,-500.0,0.00019999,2]
[360240058,1746651039878,-450.0,0.00019999,2]
[360240059,1746651039888,-550.0,0.00019999,2]
[360240060,1746651039899,-500.0,0.00019999,2]
[360240061,1746651039911,-450.0,0.00019999,2]
[360240062,1746651039921,-450.0,0.00019999,2]
[360240063,1746651039931,-456.6255072,0.00019999,2]
[360240064,1746651039947,-500.0,0.00019999,2]
[360240065,1746651039958,-288.27,0.00019999,2]
[360240066,1746651039968,-450.0,0.00019999,2]
[360240067,1746651039979,-450.0,0.00019999,2]
[360240068,1746651039991,-450.0,0.00019999,2]
[360240069,1746651040001,-450.0,0.00019999,2]
[360240070,1746651040011,-459.94221068,0.00019999,2]
[360240071,1746651040022,-847.021,0.00019999,2]
[360240072,1746651040032,-450.0,0.00019999,2]
[360240073,1746651040042,-450.0,0.00019999,2]
[360240074,1746651040052,-316.67510091,0.00019999,2]
[360240075,1746651040062,-515.82031115,0.00019999,2]
[360240076,1746651040073,-500.0,0.00019999,2]
[360240077,1746651040083,-500.0,0.00019999,2]
[360240078,1746651040094,-450.0,0.00019999,2]
[360240079,1746651040104,-450.0,0.00019999,2]